[Event "Titled Tuesday Blitz August 15 Early 2023"]
[White "Lamaze, Simon"]
[Black "Svane, Rasmus"]
[WhiteFideId "36069264"]
[BlackFideId "4657101"]
[WhiteElo "2722"]
[BlackElo "2985"]
[Result "0-1"]
[Round "5"]
[TimeControl "180+1"]
[Date "2023.08.15"]
[WhiteClock "0:00:11"]
[BlackClock "0:00:41"]
[Board "23"]

1. c4 {[%clk 0:02:59]}  e6 {[%clk 0:02:59]} 2. Nf3 {[%clk 0:02:58]}  d5 {[%clk 0:03:00]} 3. d4 {[%clk 0:02:59]}  a6 {[%clk 0:02:58]} 4. g3 {[%clk 0:02:59]}  dxc4 {[%clk 0:02:59]} 5. Bg2 {[%clk 0:03:00]}  b5 {[%clk 0:02:59]} 6. Ne5 {[%clk 0:02:56]}  c6 {[%clk 0:02:59]} 7. O-O {[%clk 0:02:55]}  Bb7 {[%clk 0:02:59]} 8. a4 {[%clk 0:02:55]}  Nf6 {[%clk 0:02:58]} 9. b3 {[%clk 0:02:54]}  cxb3 {[%clk 0:02:57]} 10. Qxb3 {[%clk 0:02:55]}  Be7 {[%clk 0:02:57]} 11. Rd1 {[%clk 0:02:50]}  O-O {[%clk 0:02:55]} 12. Nc3 {[%clk 0:02:50]}  Qc8 {[%clk 0:02:34]} 13. Ba3 {[%clk 0:02:18]}  Bxa3 {[%clk 0:02:31]} 14. Qxa3 {[%clk 0:02:19]}  Nbd7 {[%clk 0:02:30]} 15. Nd3 {[%clk 0:01:37]}  a5 {[%clk 0:02:29]} 16. Qd6 {[%clk 0:01:25]}  b4 {[%clk 0:02:26]} 17. Ne4 {[%clk 0:01:24]}  Nxe4 {[%clk 0:02:19]} 18. Bxe4 {[%clk 0:01:25]}  Rd8 {[%clk 0:02:13]} 19. Bf3 {[%clk 0:01:02]}  Nf6 {[%clk 0:02:04]} 20. Qe5 {[%clk 0:01:00]}  Qb8 {[%clk 0:02:00]} 21. Nc5 {[%clk 0:00:57]}  Nd7 {[%clk 0:01:56]} 22. Qxb8 {[%clk 0:00:36]}  Raxb8 {[%clk 0:01:56]} 23. Nb3 {[%clk 0:00:31]}  Ra8 {[%clk 0:01:54]} 24. Rac1 {[%clk 0:00:31]}  Rdc8 {[%clk 0:01:50]} 25. e4 {[%clk 0:00:29]}  c5 {[%clk 0:01:42]} 26. dxc5 {[%clk 0:00:21]}  Bc6 {[%clk 0:01:43]} 27. Ra1 {[%clk 0:00:20]}  Kf8 {[%clk 0:01:36]} 28. Be2 {[%clk 0:00:18]}  Ke7 {[%clk 0:01:31]} 29. f3 {[%clk 0:00:18]}  Rc7 {[%clk 0:01:29]} 30. Kf2 {[%clk 0:00:18]}  Bb7 {[%clk 0:01:20]} 31. Rac1 {[%clk 0:00:18]}  Ba6 {[%clk 0:01:21]} 32. Bxa6 {[%clk 0:00:17]}  Rxa6 {[%clk 0:01:21]} 33. Rc2 {[%clk 0:00:16]}  Nb6 {[%clk 0:00:48]} 34. Ra1 {[%clk 0:00:13]}  Nc8 {[%clk 0:00:45]} 35. Ke3 {[%clk 0:00:13]}  Rd7 {[%clk 0:00:42]} 36. Rd1 {[%clk 0:00:11]}  Rxd1 {[%clk 0:00:41]} 0-1


[Site "https://www.chess.com"]

[Event "Titled Tuesday Blitz August 15 Early 2023"]
[White "Gorovets, Andrey"]
[Black "Shtembuliak, Evgeny"]
[WhiteFideId "13504037"]
[BlackFideId "14113325"]
[WhiteElo "2697"]
[BlackElo "2944"]
[Result "1-0"]
[Round "5"]
[TimeControl "180+1"]
[Date "2023.08.15"]
[WhiteClock "0:00:07"]
[BlackClock "0:00:00"]
[Board "28"]

1. d4 {[%clk 0:03:00]}  Nf6 {[%clk 0:02:56]} 2. c4 {[%clk 0:03:01]}  e6 {[%clk 0:02:57]} 3. Nf3 {[%clk 0:03:00]}  d5 {[%clk 0:02:56]} 4. g3 {[%clk 0:03:01]}  Bb4+ {[%clk 0:02:57]} 5. Bd2 {[%clk 0:03:00]}  Be7 {[%clk 0:02:56]} 6. Bg2 {[%clk 0:02:59]}  O-O {[%clk 0:02:57]} 7. Qc2 {[%clk 0:02:58]}  Nbd7 {[%clk 0:02:56]} 8. O-O {[%clk 0:02:49]}  Ne4 {[%clk 0:02:56]} 9. Bf4 {[%clk 0:02:40]}  c6 {[%clk 0:02:55]} 10. Ne5 {[%clk 0:02:40]}  Nd6 {[%clk 0:02:39]} 11. Nd2 {[%clk 0:02:32]}  Nf5 {[%clk 0:02:25]} 12. Ndf3 {[%clk 0:02:27]}  g5 {[%clk 0:02:16]} 13. Nxd7 {[%clk 0:02:14]}  Bxd7 {[%clk 0:02:12]} 14. Be3 {[%clk 0:02:10]}  g4 {[%clk 0:02:07]} 15. Ne5 {[%clk 0:02:07]}  Nxe3 {[%clk 0:02:07]} 16. fxe3 {[%clk 0:02:07]}  f5 {[%clk 0:02:08]} 17. c5 {[%clk 0:01:46]}  Bg5 {[%clk 0:01:51]} 18. Qc3 {[%clk 0:01:44]}  a5 {[%clk 0:01:49]} 19. b3 {[%clk 0:01:42]}  Be8 {[%clk 0:01:38]} 20. a3 {[%clk 0:01:40]}  h5 {[%clk 0:01:22]} 21. h4 {[%clk 0:01:36]}  gxh3 {[%clk 0:00:57]} 22. Bxh3 {[%clk 0:01:35]}  Bh6 {[%clk 0:00:57]} 23. Kh2 {[%clk 0:01:30]}  Kh7 {[%clk 0:00:53]} 24. Qd3 {[%clk 0:01:11]}  Qg5 {[%clk 0:00:45]} 25. Rf3 {[%clk 0:01:04]}  Rg8 {[%clk 0:00:42]} 26. Rg1 {[%clk 0:01:00]}  Bg6 {[%clk 0:00:39]} 27. Qd2 {[%clk 0:00:44]}  Rg7 {[%clk 0:00:38]} 28. Qc3 {[%clk 0:00:42]}  Kh8 {[%clk 0:00:30]} 29. Qd2 {[%clk 0:00:40]}  Bh7 {[%clk 0:00:29]} 30. Qc3 {[%clk 0:00:38]}  Qf6 {[%clk 0:00:28]} 31. Qe1 {[%clk 0:00:32]}  Bg5 {[%clk 0:00:21]} 32. Qf1 {[%clk 0:00:20]}  Qh6 {[%clk 0:00:19]} 33. Qf2 {[%clk 0:00:20]}  Rag8 {[%clk 0:00:17]} 34. Rf4 {[%clk 0:00:19]}  Bf6 {[%clk 0:00:16]} 35. Rg2 {[%clk 0:00:17]}  Bxe5 {[%clk 0:00:16]} 36. dxe5 {[%clk 0:00:17]}  Rg5 {[%clk 0:00:16]} 37. Rh4 {[%clk 0:00:16]}  Qg7 {[%clk 0:00:13]} 38. Qf4 {[%clk 0:00:16]}  Qe7 {[%clk 0:00:13]} 39. Qd4 {[%clk 0:00:16]}  Qg7 {[%clk 0:00:11]} 40. Qf4 {[%clk 0:00:15]}  Rb8 {[%clk 0:00:10]} 41. b4 {[%clk 0:00:14]}  axb4 {[%clk 0:00:10]} 42. axb4 {[%clk 0:00:15]}  Ra8 {[%clk 0:00:10]} 43. e4 {[%clk 0:00:13]}  dxe4 {[%clk 0:00:10]} 44. e3 {[%clk 0:00:14]}  Rg8 {[%clk 0:00:09]} 45. Rg1 {[%clk 0:00:09]}  Qe7 {[%clk 0:00:09]} 46. Bf1 {[%clk 0:00:09]}  Qg7 {[%clk 0:00:08]} 47. Be2 {[%clk 0:00:10]}  Qf7 {[%clk 0:00:07]} 48. Rg2 {[%clk 0:00:09]}  Qe8 {[%clk 0:00:06]} 49. Rg1 {[%clk 0:00:09]}  R8g7 {[%clk 0:00:06]} 50. Rd1 {[%clk 0:00:07]}  Rg8 {[%clk 0:00:04]} 51. Rd6 {[%clk 0:00:07]}  Qg6 {[%clk 0:00:04]} 52. Rh3 {[%clk 0:00:07]}  Qh6 {[%clk 0:00:03]} 53. Bd1 {[%clk 0:00:07]}  Qg6 {[%clk 0:00:03]} 54. Be2 {[%clk 0:00:07]}  Qh6 {[%clk 0:00:03]} 55. Bxh5 {[%clk 0:00:07]}  Qg7 {[%clk 0:00:02]} 56. Be2 {[%clk 0:00:06]}  Qe7 {[%clk 0:00:02]} 57. Qh4 {[%clk 0:00:06]}  R8g7 {[%clk 0:00:02]} 58. Qh6 {[%clk 0:00:06]}  Kg8 {[%clk 0:00:02]} 59. Qf6 {[%clk 0:00:05]}  Qxf6 {[%clk 0:00:02]} 60. exf6 {[%clk 0:00:06]}  Rf7 {[%clk 0:00:02]} 61. Rxe6 {[%clk 0:00:07]}  Rg6 {[%clk 0:00:02]} 62. Bc4 {[%clk 0:00:07]}  Kf8 {[%clk 0:00:00]} 63. Rd6 {[%clk 0:00:07]} 1-0


[Site "https://www.chess.com"]

[Event "Titled Tuesday Blitz August 15 Early 2023"]
[White "Hua, Lefong"]
[Black "Demidov, Mikhail"]
[WhiteFideId "2602253"]
[BlackFideId "4197143"]
[WhiteElo "2694"]
[BlackElo "2934"]
[Result "1/2-1/2"]
[Round "5"]
[TimeControl "180+1"]
[Date "2023.08.15"]
[WhiteClock "0:00:09"]
[BlackClock "0:00:04"]
[Board "29"]

1. d4 {[%clk 0:03:00]}  d5 {[%clk 0:02:57]} 2. c4 {[%clk 0:03:01]}  c6 {[%clk 0:02:57]} 3. Nf3 {[%clk 0:03:01]}  Nf6 {[%clk 0:02:57]} 4. Nc3 {[%clk 0:03:01]}  dxc4 {[%clk 0:02:57]} 5. a4 {[%clk 0:03:01]}  Bf5 {[%clk 0:02:56]} 6. Ne5 {[%clk 0:03:01]}  Na6 {[%clk 0:02:55]} 7. e3 {[%clk 0:02:55]}  Nb4 {[%clk 0:02:54]} 8. Bxc4 {[%clk 0:02:55]}  e6 {[%clk 0:02:55]} 9. O-O {[%clk 0:02:51]}  Be7 {[%clk 0:02:52]} 10. f3 {[%clk 0:02:38]}  Bc2 {[%clk 0:02:51]} 11. Qe2 {[%clk 0:02:30]}  O-O {[%clk 0:02:51]} 12. Na2 {[%clk 0:02:18]}  Nxa2 {[%clk 0:02:48]} 13. Rxa2 {[%clk 0:02:11]}  Bg6 {[%clk 0:02:48]} 14. Rd1 {[%clk 0:02:07]}  Qc7 {[%clk 0:02:42]} 15. e4 {[%clk 0:02:02]}  Rad8 {[%clk 0:02:38]} 16. Be3 {[%clk 0:01:58]}  Nd7 {[%clk 0:02:34]} 17. Nxg6 {[%clk 0:01:51]}  hxg6 {[%clk 0:02:35]} 18. a5 {[%clk 0:01:48]}  Bd6 {[%clk 0:02:29]} 19. h3 {[%clk 0:01:46]}  Bf4 {[%clk 0:02:29]} 20. Bf2 {[%clk 0:01:44]}  Bg3 {[%clk 0:02:26]} 21. Be3 {[%clk 0:01:44]}  Nf6 {[%clk 0:02:26]} 22. Bg5 {[%clk 0:01:36]}  Rd7 {[%clk 0:02:23]} 23. Bxf6 {[%clk 0:01:34]}  gxf6 {[%clk 0:02:23]} 24. b4 {[%clk 0:01:32]}  Rfd8 {[%clk 0:02:21]} 25. Rad2 {[%clk 0:01:32]}  a6 {[%clk 0:02:20]} 26. Rd3 {[%clk 0:01:28]}  Kg7 {[%clk 0:02:20]} 27. Qb2 {[%clk 0:01:28]}  Qf4 {[%clk 0:02:15]} 28. Ba2 {[%clk 0:01:20]}  Qg5 {[%clk 0:02:13]} 29. d5 {[%clk 0:01:18]}  exd5 {[%clk 0:02:10]} 30. exd5 {[%clk 0:01:18]}  cxd5 {[%clk 0:02:10]} 31. Qd2 {[%clk 0:01:07]}  Bf4 {[%clk 0:02:07]} 32. Qf2 {[%clk 0:01:07]}  d4 {[%clk 0:02:07]} 33. Kh1 {[%clk 0:01:02]}  Be5 {[%clk 0:01:58]} 34. Kg1 {[%clk 0:00:41]}  Qf4 {[%clk 0:01:55]} 35. Kf1 {[%clk 0:00:41]}  Rc7 {[%clk 0:01:51]} 36. Bb3 {[%clk 0:00:40]}  Rdc8 {[%clk 0:01:48]} 37. g3 {[%clk 0:00:37]}  Qxg3 {[%clk 0:01:32]} 38. Qxg3 {[%clk 0:00:38]}  Bxg3 {[%clk 0:01:32]} 39. Rxd4 {[%clk 0:00:37]}  Rc3 {[%clk 0:01:31]} 40. R4d3 {[%clk 0:00:36]}  Rxd3 {[%clk 0:01:22]} 41. Rxd3 {[%clk 0:00:36]}  Rc7 {[%clk 0:01:22]} 42. Ke2 {[%clk 0:00:24]}  f5 {[%clk 0:01:20]} 43. Rd5 {[%clk 0:00:20]}  Kh6 {[%clk 0:01:13]} 44. Rc5 {[%clk 0:00:21]}  Re7+ {[%clk 0:01:08]} 45. Kf1 {[%clk 0:00:20]}  Bd6 {[%clk 0:01:03]} 46. Rc4 {[%clk 0:00:17]}  Re3 {[%clk 0:01:01]} 47. Bd1 {[%clk 0:00:17]}  Bg3 {[%clk 0:00:51]} 48. Kg2 {[%clk 0:00:17]}  Bd6 {[%clk 0:00:44]} 49. Rd4 {[%clk 0:00:17]}  Bf8 {[%clk 0:00:41]} 50. Rd7 {[%clk 0:00:16]}  Bxb4 {[%clk 0:00:40]} 51. Rxf7 {[%clk 0:00:16]}  Bxa5 {[%clk 0:00:38]} 52. Rxb7 {[%clk 0:00:17]}  Be1 {[%clk 0:00:33]} 53. Ra7 {[%clk 0:00:16]}  a5 {[%clk 0:00:32]} 54. Ra6 {[%clk 0:00:17]}  Kg5 {[%clk 0:00:32]} 55. Kf1 {[%clk 0:00:16]}  Bb4 {[%clk 0:00:31]} 56. Kg2 {[%clk 0:00:16]}  Rd3 {[%clk 0:00:31]} 57. Be2 {[%clk 0:00:16]}  Rd2 {[%clk 0:00:30]} 58. Kf1 {[%clk 0:00:16]}  Rb2 {[%clk 0:00:29]} 59. h4+ {[%clk 0:00:16]}  Kxh4 {[%clk 0:00:13]} 60. Rxg6 {[%clk 0:00:16]}  Rd2 {[%clk 0:00:13]} 61. f4 {[%clk 0:00:14]}  Bd6 {[%clk 0:00:08]} 62. Rg5 {[%clk 0:00:12]}  Bxf4 {[%clk 0:00:05]} 63. Rxf5 {[%clk 0:00:12]}  Kg3 {[%clk 0:00:05]} 64. Rxa5 {[%clk 0:00:10]}  Rb2 {[%clk 0:00:03]} 65. Ra3+ {[%clk 0:00:10]}  Kh4 {[%clk 0:00:04]} 66. Rf3 {[%clk 0:00:10]}  Kg5 {[%clk 0:00:04]} 67. Kf2 {[%clk 0:00:10]}  Kf5 {[%clk 0:00:04]} 68. Kf1 {[%clk 0:00:10]}  Ke5 {[%clk 0:00:04]} 69. Kf2 {[%clk 0:00:11]}  Ke4 {[%clk 0:00:05]} 70. Kf1 {[%clk 0:00:11]}  Be3 {[%clk 0:00:05]} 71. Rf8 {[%clk 0:00:08]}  Rb1+ {[%clk 0:00:05]} 72. Kg2 {[%clk 0:00:09]}  Rg1+ {[%clk 0:00:06]} 73. Kh2 {[%clk 0:00:09]}  Rg7 {[%clk 0:00:06]} 74. Bf3+ {[%clk 0:00:09]}  Ke5 {[%clk 0:00:05]} 75. Re8+ {[%clk 0:00:08]}  Kf4 {[%clk 0:00:06]} 76. Bg2 {[%clk 0:00:09]}  Bc5 {[%clk 0:00:04]} 77. Rc8 {[%clk 0:00:08]}  Bd6 {[%clk 0:00:05]} 78. Rc4+ {[%clk 0:00:07]}  Ke3+ {[%clk 0:00:05]} 79. Kg1 {[%clk 0:00:07]}  Bc7 {[%clk 0:00:01]} 80. Re4+ {[%clk 0:00:07]}  Kd3 {[%clk 0:00:02]} 81. Kf2 {[%clk 0:00:07]}  Bb6+ {[%clk 0:00:02]} 82. Kf1 {[%clk 0:00:08]}  Rf7+ {[%clk 0:00:03]} 83. Ke1 {[%clk 0:00:08]}  Ba5+ {[%clk 0:00:02]} 84. Kd1 {[%clk 0:00:08]}  Rf2 {[%clk 0:00:03]} 85. Rg4 {[%clk 0:00:06]}  Bc3 {[%clk 0:00:03]} 86. Be4+ {[%clk 0:00:06]}  Ke3 {[%clk 0:00:03]} 87. Bg6 {[%clk 0:00:06]}  Rd2+ {[%clk 0:00:02]} 88. Kc1 {[%clk 0:00:07]}  Rh2 {[%clk 0:00:03]} 89. Re4+ {[%clk 0:00:07]}  Kf3 {[%clk 0:00:02]} 90. Re6 {[%clk 0:00:07]}  Bd2+ {[%clk 0:00:03]} 91. Kc2 {[%clk 0:00:08]}  Bf4+ {[%clk 0:00:03]} 92. Kd3 {[%clk 0:00:08]}  Rd2+ {[%clk 0:00:03]} 93. Kc4 {[%clk 0:00:08]}  Rd8 {[%clk 0:00:04]} 94. Be4+ {[%clk 0:00:08]}  Kg4 {[%clk 0:00:04]} 95. Bd5 {[%clk 0:00:09]}  Kf5 {[%clk 0:00:04]} 96. Rc6 {[%clk 0:00:09]}  Be5 {[%clk 0:00:04]} 97. Be6+ {[%clk 0:00:09]}  Kf4 {[%clk 0:00:04]} 98. Bd5 {[%clk 0:00:10]}  Kf5 {[%clk 0:00:05]} 99. Be6+ {[%clk 0:00:10]}  Ke4 {[%clk 0:00:05]} 100. Bh3 {[%clk 0:00:09]}  Rd2 {[%clk 0:00:04]} 101. Be6 {[%clk 0:00:09]}  Rc2+ {[%clk 0:00:04]} 102. Kb5 {[%clk 0:00:09]}  Rb2+ {[%clk 0:00:05]} 103. Kc5 {[%clk 0:00:10]}  Bd4+ {[%clk 0:00:05]} 104. Kd6 {[%clk 0:00:10]}  Rb8 {[%clk 0:00:04]} 105. Bd5+ {[%clk 0:00:10]}  Kf4 {[%clk 0:00:05]} 106. Ke6 {[%clk 0:00:09]}  Re8+ {[%clk 0:00:04]} 107. Kd7 {[%clk 0:00:10]}  Re5 {[%clk 0:00:04]} 108. Be6 {[%clk 0:00:09]}  Ra5 {[%clk 0:00:04]} 109. Bc4 {[%clk 0:00:09]}  Ke5 {[%clk 0:00:04]} 110. Re6+ {[%clk 0:00:09]}  Kf4 {[%clk 0:00:05]} 111. Rc6 {[%clk 0:00:09]}  Be5 {[%clk 0:00:05]} 112. Ke6 {[%clk 0:00:09]}  Bd4 {[%clk 0:00:05]} 113. Bd5 {[%clk 0:00:10]}  Ra7 {[%clk 0:00:04]} 114. Kd6 {[%clk 0:00:09]} 1/2-1/2


[Site "https://www.chess.com"]

[Event "Titled Tuesday Blitz August 15 Early 2023"]
[White "Kazakouski, Valery"]
[Black "Matinian, Nikita"]
[WhiteFideId "13507443"]
[BlackFideId "24129100"]
[WhiteElo "2916"]
[BlackElo "2693"]
[Result "1-0"]
[Round "5"]
[TimeControl "180+1"]
[Date "2023.08.15"]
[WhiteClock "0:01:34"]
[BlackClock "0:00:18"]
[Board "30"]

1. Nf3 {[%clk 0:03:00]}  Nf6 {[%clk 0:02:59]} 2. c4 {[%clk 0:03:01]}  g6 {[%clk 0:03:00]} 3. g3 {[%clk 0:03:01]}  Bg7 {[%clk 0:03:01]} 4. Bg2 {[%clk 0:03:02]}  O-O {[%clk 0:03:02]} 5. O-O {[%clk 0:03:03]}  d6 {[%clk 0:03:03]} 6. d4 {[%clk 0:03:03]}  c6 {[%clk 0:03:03]} 7. Nc3 {[%clk 0:03:03]}  Bf5 {[%clk 0:03:04]} 8. Ng5 {[%clk 0:03:03]}  d5 {[%clk 0:02:41]} 9. Qb3 {[%clk 0:02:51]}  Qb6 {[%clk 0:02:20]} 10. cxd5 {[%clk 0:02:39]}  h6 {[%clk 0:02:19]} 11. e4 {[%clk 0:02:28]}  Bc8 {[%clk 0:01:41]} 12. Nf3 {[%clk 0:02:26]}  cxd5 {[%clk 0:01:32]} 13. Qxb6 {[%clk 0:02:25]}  axb6 {[%clk 0:01:31]} 14. e5 {[%clk 0:02:25]}  Nfd7 {[%clk 0:01:10]} 15. Nxd5 {[%clk 0:02:25]}  Nc6 {[%clk 0:01:11]} 16. Be3 {[%clk 0:02:22]}  e6 {[%clk 0:01:09]} 17. Nc7 {[%clk 0:02:17]}  Ra5 {[%clk 0:01:07]} 18. Rfc1 {[%clk 0:02:06]}  Rd8 {[%clk 0:01:07]} 19. a4 {[%clk 0:01:59]}  Bf8 {[%clk 0:00:52]} 20. Nd2 {[%clk 0:01:58]}  Kg7 {[%clk 0:00:43]} 21. Nc4 {[%clk 0:01:57]}  Ra7 {[%clk 0:00:39]} 22. f4 {[%clk 0:01:56]}  Bb4 {[%clk 0:00:37]} 23. Kf2 {[%clk 0:01:54]}  Ndb8 {[%clk 0:00:35]} 24. Nxb6 {[%clk 0:01:49]}  Bd7 {[%clk 0:00:25]} 25. d5 {[%clk 0:01:49]}  exd5 {[%clk 0:00:25]} 26. Nbxd5 {[%clk 0:01:48]}  Ba5 {[%clk 0:00:23]} 27. b4 {[%clk 0:01:35]}  Bxc7 {[%clk 0:00:21]} 28. Nxc7 {[%clk 0:01:35]}  Nxb4 {[%clk 0:00:19]} 29. Bxa7 {[%clk 0:01:34]}  Nd3+ {[%clk 0:00:19]} 30. Kg1 {[%clk 0:01:34]}  Nxc1 {[%clk 0:00:20]} 31. Rxc1 {[%clk 0:01:35]}  Bxa4 {[%clk 0:00:20]} 32. Bxb7 {[%clk 0:01:34]}  Rd7 {[%clk 0:00:18]} 33. Bxb8 {[%clk 0:01:34]} 1-0


[Site "https://www.chess.com"]

[Event "Titled Tuesday Blitz August 15 Early 2023"]
[White "Kushko, Dmitriy"]
[Black "Demchenko, Anton"]
[WhiteFideId "14162261"]
[BlackFideId "4160258"]
[WhiteElo "2687"]
[BlackElo "2912"]
[Result "0-1"]
[Round "5"]
[TimeControl "180+1"]
[Date "2023.08.15"]
[WhiteClock "0:00:22"]
[BlackClock "0:01:12"]
[Board "32"]

1. Nf3 {[%clk 0:03:00]}  Nf6 {[%clk 0:02:52]} 2. g3 {[%clk 0:03:00]}  b5 {[%clk 0:02:50]} 3. Na3 {[%clk 0:03:00]}  a6 {[%clk 0:02:48]} 4. c4 {[%clk 0:03:00]}  e6 {[%clk 0:02:47]} 5. b3 {[%clk 0:03:00]}  bxc4 {[%clk 0:02:44]} 6. Nxc4 {[%clk 0:02:56]}  a5 {[%clk 0:02:44]} 7. Bg2 {[%clk 0:02:49]}  Bb7 {[%clk 0:02:44]} 8. O-O {[%clk 0:02:45]}  Be7 {[%clk 0:02:44]} 9. d4 {[%clk 0:02:41]}  a4 {[%clk 0:02:40]} 10. bxa4 {[%clk 0:02:40]}  O-O {[%clk 0:02:40]} 11. Qb3 {[%clk 0:02:12]}  Bd5 {[%clk 0:02:32]} 12. Nfe5 {[%clk 0:02:12]}  d6 {[%clk 0:02:30]} 13. Nd3 {[%clk 0:02:09]}  Nc6 {[%clk 0:02:28]} 14. Bxd5 {[%clk 0:02:05]}  exd5 {[%clk 0:02:28]} 15. Ne3 {[%clk 0:02:00]}  Nxd4 {[%clk 0:02:27]} 16. Qb2 {[%clk 0:02:00]}  c5 {[%clk 0:02:26]} 17. Nf4 {[%clk 0:01:57]}  Re8 {[%clk 0:01:52]} 18. Nexd5 {[%clk 0:01:57]}  Nxd5 {[%clk 0:01:52]} 19. Nxd5 {[%clk 0:01:57]}  Bf6 {[%clk 0:01:52]} 20. Nxf6+ {[%clk 0:01:40]}  Qxf6 {[%clk 0:01:53]} 21. e3 {[%clk 0:01:36]}  Rab8 {[%clk 0:01:54]} 22. exd4 {[%clk 0:01:29]}  Rxb2 {[%clk 0:01:52]} 23. Bxb2 {[%clk 0:01:30]}  h5 {[%clk 0:01:48]} 24. Rab1 {[%clk 0:01:18]}  Re2 {[%clk 0:01:40]} 25. h4 {[%clk 0:01:00]}  g5 {[%clk 0:01:34]} 26. hxg5 {[%clk 0:00:58]}  Qxg5 {[%clk 0:01:24]} 27. dxc5 {[%clk 0:00:58]}  h4 {[%clk 0:01:20]} 28. Bc1 {[%clk 0:00:57]}  Qxc5 {[%clk 0:01:19]} 29. gxh4 {[%clk 0:00:35]}  Re4 {[%clk 0:01:20]} 30. Rb3 {[%clk 0:00:33]}  Rxh4 {[%clk 0:01:19]} 31. Rg3+ {[%clk 0:00:33]}  Kf8 {[%clk 0:01:17]} 32. Ba3 {[%clk 0:00:23]}  Qd5 {[%clk 0:01:16]} 33. a5 {[%clk 0:00:22]}  Rh1# {[%clk 0:01:12]} 0-1


[Site "https://www.chess.com"]

[Event "Titled Tuesday Blitz August 15 Early 2023"]
[White "Grigorjev, Iljya"]
[Black "Aaditya Dhingra"]
[WhiteFideId "24159565"]
[BlackFideId "25678191"]
[WhiteElo "2908"]
[BlackElo "2671"]
[Result "1-0"]
[Round "5"]
[TimeControl "180+1"]
[Date "2023.08.15"]
[WhiteClock "0:01:40"]
[BlackClock "0:02:03"]
[Board "34"]

1. d4 {[%clk 0:03:00]}  Nf6 {[%clk 0:02:57]} 2. c4 {[%clk 0:03:00]}  a6 {[%clk 0:02:55]} 3. Nc3 {[%clk 0:02:53]}  c5 {[%clk 0:02:54]} 4. dxc5 {[%clk 0:02:49]}  Qa5 {[%clk 0:02:53]} 5. Nf3 {[%clk 0:02:35]}  Nc6 {[%clk 0:02:50]} 6. g3 {[%clk 0:02:26]}  Qxc5 {[%clk 0:02:48]} 7. b3 {[%clk 0:02:21]}  g6 {[%clk 0:02:47]} 8. Bb2 {[%clk 0:02:17]}  Bg7 {[%clk 0:02:47]} 9. Bg2 {[%clk 0:02:18]}  O-O {[%clk 0:02:46]} 10. O-O {[%clk 0:02:18]}  d6 {[%clk 0:02:41]} 11. Rc1 {[%clk 0:02:19]}  Qh5 {[%clk 0:02:41]} 12. Qd2 {[%clk 0:01:57]}  Bh3 {[%clk 0:02:38]} 13. Nd5 {[%clk 0:01:52]}  Ng4 {[%clk 0:02:21]} 14. Bxg7 {[%clk 0:01:48]}  Kxg7 {[%clk 0:02:03]} 15. Nf4 {[%clk 0:01:40]} 1-0


[Site "https://www.chess.com"]

[Event "Titled Tuesday Blitz August 15 Early 2023"]
[White "Kleiman, Jake"]
[Black "He, Anthony"]
[WhiteFideId "2020041"]
[BlackFideId "2088215"]
[WhiteElo "2661"]
[BlackElo "2904"]
[Result "0-1"]
[Round "5"]
[TimeControl "180+1"]
[Date "2023.08.15"]
[WhiteClock "0:00:00"]
[BlackClock "0:00:16"]
[Board "35"]

1. e4 {[%clk 0:03:00]}  e5 {[%clk 0:02:58]} 2. Nf3 {[%clk 0:03:00]}  Nc6 {[%clk 0:02:58]} 3. Bc4 {[%clk 0:03:01]}  Bc5 {[%clk 0:02:58]} 4. c3 {[%clk 0:03:01]}  Nf6 {[%clk 0:02:58]} 5. d3 {[%clk 0:03:02]}  d6 {[%clk 0:02:57]} 6. Bb3 {[%clk 0:03:01]}  O-O {[%clk 0:02:56]} 7. O-O {[%clk 0:03:00]}  h6 {[%clk 0:02:56]} 8. h3 {[%clk 0:03:01]}  a6 {[%clk 0:02:56]} 9. Re1 {[%clk 0:03:00]}  Re8 {[%clk 0:02:56]} 10. Nbd2 {[%clk 0:03:00]}  Ba7 {[%clk 0:02:56]} 11. Nf1 {[%clk 0:03:00]}  Be6 {[%clk 0:02:57]} 12. Bc2 {[%clk 0:03:00]}  d5 {[%clk 0:02:57]} 13. Qe2 {[%clk 0:03:00]}  Qd6 {[%clk 0:02:55]} 14. Ng3 {[%clk 0:03:00]}  Rad8 {[%clk 0:02:56]} 15. Nh4 {[%clk 0:02:52]}  Ne7 {[%clk 0:02:51]} 16. Qf3 {[%clk 0:02:27]}  Kh7 {[%clk 0:02:43]} 17. Nhf5 {[%clk 0:02:23]}  Nxf5 {[%clk 0:02:42]} 18. Nxf5 {[%clk 0:02:23]}  Bxf5 {[%clk 0:02:29]} 19. Qxf5+ {[%clk 0:02:23]}  g6 {[%clk 0:02:29]} 20. Qf3 {[%clk 0:02:23]}  Kg7 {[%clk 0:02:29]} 21. Re2 {[%clk 0:02:11]}  b5 {[%clk 0:02:04]} 22. a3 {[%clk 0:02:06]}  d4 {[%clk 0:01:49]} 23. Bd2 {[%clk 0:01:54]}  c5 {[%clk 0:01:48]} 24. cxd4 {[%clk 0:01:40]}  Qxd4 {[%clk 0:01:46]} 25. Bc3 {[%clk 0:01:37]}  Qd6 {[%clk 0:01:47]} 26. b4 {[%clk 0:01:30]}  Rc8 {[%clk 0:01:43]} 27. Bb3 {[%clk 0:01:10]}  cxb4 {[%clk 0:01:39]} 28. Bxb4 {[%clk 0:01:11]}  Bc5 {[%clk 0:01:40]} 29. Bd2 {[%clk 0:00:56]}  Bd4 {[%clk 0:01:39]} 30. Rb1 {[%clk 0:00:48]}  Rc6 {[%clk 0:01:34]} 31. a4 {[%clk 0:00:45]}  Rb8 {[%clk 0:01:31]} 32. a5 {[%clk 0:00:41]}  Rbc8 {[%clk 0:01:29]} 33. g4 {[%clk 0:00:39]}  R8c7 {[%clk 0:01:28]} 34. Kg2 {[%clk 0:00:33]}  Bc3 {[%clk 0:01:22]} 35. Be3 {[%clk 0:00:32]}  Bd4 {[%clk 0:01:07]} 36. Bd2 {[%clk 0:00:32]}  Qe7 {[%clk 0:00:59]} 37. Rh1 {[%clk 0:00:25]}  Qd7 {[%clk 0:00:57]} 38. Kh2 {[%clk 0:00:23]}  Bc3 {[%clk 0:00:51]} 39. Be3 {[%clk 0:00:21]}  Bxa5 {[%clk 0:00:41]} 40. Rg1 {[%clk 0:00:13]}  Rc3 {[%clk 0:00:36]} 41. Ba2 {[%clk 0:00:11]}  Qxd3 {[%clk 0:00:26]} 42. Bb1 {[%clk 0:00:07]}  Qd6 {[%clk 0:00:22]} 43. h4 {[%clk 0:00:07]}  Bb6 {[%clk 0:00:20]} 44. g5 {[%clk 0:00:03]}  hxg5 {[%clk 0:00:21]} 45. hxg5 {[%clk 0:00:03]}  Nh5 {[%clk 0:00:21]} 46. Rg4 {[%clk 0:00:03]}  Bxe3 {[%clk 0:00:21]} 47. Rxe3 {[%clk 0:00:04]}  Rxe3 {[%clk 0:00:21]} 48. Qxe3 {[%clk 0:00:05]}  Qc5 {[%clk 0:00:20]} 49. Qf3 {[%clk 0:00:04]}  Qc1 {[%clk 0:00:20]} 50. Ba2 {[%clk 0:00:03]}  Nf4 {[%clk 0:00:20]} 51. Rh4 {[%clk 0:00:03]}  Rc2 {[%clk 0:00:17]} 52. Bd5 {[%clk 0:00:03]}  Qe1 {[%clk 0:00:17]} 53. Rxf4 {[%clk 0:00:01]}  exf4 {[%clk 0:00:17]} 54. Kg2 {[%clk 0:00:00]}  Qe3 {[%clk 0:00:16]} 0-1


[Site "https://www.chess.com"]